[Event "Titled Tuesday Blitz August 1 Early 2023"]
[White "Amilal Munkhdalai"]
[Black "Harshavardhan G B"]
[WhiteFideId "4903250"]
[BlackFideId "25059009"]
[WhiteElo "2727"]
[BlackElo "2866"]
[Result "0-1"]
[Round "9"]
[TimeControl "180+1"]
[Date "2023.08.01"]
[WhiteClock "0:00:06"]
[BlackClock "0:00:17"]
[Board "27"]

1. e3 {[%clk 0:03:00]}  e5 {[%clk 0:02:59]} 2. b3 {[%clk 0:02:58]}  Nc6 {[%clk 0:02:58]} 3. Bb2 {[%clk 0:02:59]}  d6 {[%clk 0:02:57]} 4. c4 {[%clk 0:02:59]}  g6 {[%clk 0:02:57]} 5. Nc3 {[%clk 0:03:00]}  Bg7 {[%clk 0:02:57]} 6. g3 {[%clk 0:03:00]}  Nge7 {[%clk 0:02:57]} 7. Bg2 {[%clk 0:03:00]}  O-O {[%clk 0:02:58]} 8. Nge2 {[%clk 0:03:01]}  Be6 {[%clk 0:02:58]} 9. Nd5 {[%clk 0:02:59]}  Qd7 {[%clk 0:02:56]} 10. d3 {[%clk 0:02:57]}  Rac8 {[%clk 0:02:55]} 11. h3 {[%clk 0:02:55]}  Nd8 {[%clk 0:02:51]} 12. Nxe7+ {[%clk 0:02:49]}  Qxe7 {[%clk 0:02:52]} 13. O-O {[%clk 0:02:50]}  c5 {[%clk 0:02:51]} 14. Nc3 {[%clk 0:02:49]}  Nc6 {[%clk 0:02:50]} 15. Nd5 {[%clk 0:02:50]}  Qd7 {[%clk 0:02:50]} 16. Kh2 {[%clk 0:02:50]}  f5 {[%clk 0:02:50]} 17. Qd2 {[%clk 0:02:40]}  h5 {[%clk 0:02:45]} 18. h4 {[%clk 0:02:36]}  Ne7 {[%clk 0:02:45]} 19. f4 {[%clk 0:02:34]}  Rce8 {[%clk 0:02:22]} 20. fxe5 {[%clk 0:02:31]}  dxe5 {[%clk 0:02:21]} 21. e4 {[%clk 0:02:31]}  Rf7 {[%clk 0:02:17]} 22. Rf2 {[%clk 0:02:25]}  Ref8 {[%clk 0:02:15]} 23. Raf1 {[%clk 0:02:25]}  Kh7 {[%clk 0:02:14]} 24. Qe3 {[%clk 0:02:16]}  b6 {[%clk 0:02:10]} 25. Nxe7 {[%clk 0:02:12]}  Qxe7 {[%clk 0:02:10]} 26. exf5 {[%clk 0:02:12]}  Bxf5 {[%clk 0:02:11]} 27. Be4 {[%clk 0:02:12]}  Qe6 {[%clk 0:02:08]} 28. Bd5 {[%clk 0:02:06]}  Qd6 {[%clk 0:02:04]} 29. Bxf7 {[%clk 0:02:05]}  Rxf7 {[%clk 0:02:05]} 30. Re1 {[%clk 0:02:01]}  Re7 {[%clk 0:02:01]} 31. Rfe2 {[%clk 0:01:52]}  Bg4 {[%clk 0:01:38]} 32. Rf2 {[%clk 0:01:49]}  Qd7 {[%clk 0:01:31]} 33. Qg5 {[%clk 0:01:42]}  Re6 {[%clk 0:01:24]} 34. Bxe5 {[%clk 0:01:30]}  Bh6 {[%clk 0:01:21]} 35. Qf6 {[%clk 0:00:56]}  Rxf6 {[%clk 0:01:16]} 36. Bxf6 {[%clk 0:00:56]}  Bf8 {[%clk 0:01:14]} 37. Bg5 {[%clk 0:00:55]}  Bd6 {[%clk 0:01:11]} 38. Ref1 {[%clk 0:00:53]}  Bf5 {[%clk 0:01:11]} 39. Re1 {[%clk 0:00:51]}  Bf8 {[%clk 0:01:04]} 40. Rfe2 {[%clk 0:00:51]}  Qxd3 {[%clk 0:01:01]} 41. Re8 {[%clk 0:00:51]}  Bd6 {[%clk 0:00:58]} 42. Bf4 {[%clk 0:00:41]}  g5 {[%clk 0:00:26]} 43. hxg5 {[%clk 0:00:24]}  h4 {[%clk 0:00:23]} 44. Bxd6 {[%clk 0:00:20]}  Qxd6 {[%clk 0:00:24]} 45. R1e7+ {[%clk 0:00:20]}  Kg6 {[%clk 0:00:22]} 46. Rg8+ {[%clk 0:00:21]}  Kh5 {[%clk 0:00:20]} 47. Rh8+ {[%clk 0:00:19]}  Kg4 {[%clk 0:00:20]} 48. Rxh4+ {[%clk 0:00:19]}  Kxg5 {[%clk 0:00:19]} 49. Rg7+ {[%clk 0:00:19]}  Bg6 {[%clk 0:00:19]} 50. Rf4 {[%clk 0:00:12]}  Qe6 {[%clk 0:00:18]} 51. Kg2 {[%clk 0:00:09]}  Qe2+ {[%clk 0:00:18]} 52. Kh3 {[%clk 0:00:10]}  Kh6 {[%clk 0:00:17]} 53. Rg8 {[%clk 0:00:08]}  Qe6+ {[%clk 0:00:17]} 54. Kh4 {[%clk 0:00:06]}  Qxg8 {[%clk 0:00:17]} 0-1


[Site "https://www.chess.com"]

[Event "Titled Tuesday Blitz August 1 Early 2023"]
[White "Guerra Tulcan, Lenin"]
[Black "djokovic74"]
[WhiteFideId "3601382"]
[WhiteElo "2647"]
[BlackElo "2766"]
[Result "1/2-1/2"]
[Round "9"]
[TimeControl "180+1"]
[Date "2023.08.01"]
[WhiteClock "0:00:07"]
[BlackClock "0:00:03"]
[Board "33"]

1. e4 {[%clk 0:03:00]}  e6 {[%clk 0:03:00]} 2. d4 {[%clk 0:03:00]}  d5 {[%clk 0:03:00]} 3. Nd2 {[%clk 0:02:58]}  dxe4 {[%clk 0:03:00]} 4. Nxe4 {[%clk 0:02:58]}  Bd7 {[%clk 0:03:00]} 5. Nf3 {[%clk 0:02:56]}  Bc6 {[%clk 0:03:01]} 6. Bd3 {[%clk 0:02:56]}  Nd7 {[%clk 0:03:00]} 7. O-O {[%clk 0:02:55]}  Ngf6 {[%clk 0:03:01]} 8. Re1 {[%clk 0:02:55]}  Be7 {[%clk 0:02:58]} 9. b3 {[%clk 0:02:49]}  Bxe4 {[%clk 0:02:54]} 10. Bxe4 {[%clk 0:02:49]}  Nxe4 {[%clk 0:02:55]} 11. Rxe4 {[%clk 0:02:49]}  Nf6 {[%clk 0:02:55]} 12. Rh4 {[%clk 0:02:44]}  O-O {[%clk 0:02:46]} 13. Bb2 {[%clk 0:02:41]}  Rc8 {[%clk 0:02:33]} 14. c4 {[%clk 0:02:40]}  c6 {[%clk 0:02:24]} 15. Qc2 {[%clk 0:02:39]}  h6 {[%clk 0:02:20]} 16. Re1 {[%clk 0:02:36]}  Qc7 {[%clk 0:02:14]} 17. Qc1 {[%clk 0:01:59]}  Nh7 {[%clk 0:01:51]} 18. Rg4 {[%clk 0:01:48]}  Nf6 {[%clk 0:01:28]} 19. Rg3 {[%clk 0:01:48]}  Kh7 {[%clk 0:01:10]} 20. Ne5 {[%clk 0:01:45]}  Bd6 {[%clk 0:01:02]} 21. Rf3 {[%clk 0:01:42]}  Bxe5 {[%clk 0:00:52]} 22. dxe5 {[%clk 0:01:41]}  Nd7 {[%clk 0:00:49]} 23. g4 {[%clk 0:01:35]}  Nb6 {[%clk 0:00:31]} 24. g5 {[%clk 0:01:22]}  h5 {[%clk 0:00:30]} 25. Qc2+ {[%clk 0:01:16]}  g6 {[%clk 0:00:30]} 26. Rf6 {[%clk 0:01:14]}  Rcd8 {[%clk 0:00:28]} 27. Re3 {[%clk 0:01:08]}  Nd7 {[%clk 0:00:25]} 28. Rf4 {[%clk 0:01:07]}  Nc5 {[%clk 0:00:18]} 29. Ref3 {[%clk 0:00:58]}  Kg7 {[%clk 0:00:17]} 30. Ba3 {[%clk 0:00:52]}  b6 {[%clk 0:00:18]} 31. Bxc5 {[%clk 0:00:43]}  bxc5 {[%clk 0:00:18]} 32. Rd3 {[%clk 0:00:43]}  Rxd3 {[%clk 0:00:17]} 33. Qxd3 {[%clk 0:00:43]}  Qxe5 {[%clk 0:00:17]} 34. Qg3 {[%clk 0:00:41]}  Qc7 {[%clk 0:00:13]} 35. Kg2 {[%clk 0:00:37]}  Rd8 {[%clk 0:00:11]} 36. Qe3 {[%clk 0:00:36]}  Qd6 {[%clk 0:00:10]} 37. Qf3 {[%clk 0:00:35]}  Rd7 {[%clk 0:00:09]} 38. Qc3+ {[%clk 0:00:34]}  Kg8 {[%clk 0:00:08]} 39. Qf6 {[%clk 0:00:31]}  Qe7 {[%clk 0:00:07]} 40. Qe5 {[%clk 0:00:30]}  Qd6 {[%clk 0:00:08]} 41. Re4 {[%clk 0:00:30]}  Qd3 {[%clk 0:00:03]} 42. Qb8+ {[%clk 0:00:24]}  Kg7 {[%clk 0:00:02]} 43. Qe5+ {[%clk 0:00:23]}  Kg8 {[%clk 0:00:03]} 44. Qb8+ {[%clk 0:00:23]}  Kh7 {[%clk 0:00:03]} 45. Rf4 {[%clk 0:00:23]}  Kg7 {[%clk 0:00:02]} 46. Qe5+ {[%clk 0:00:22]}  Kg8 {[%clk 0:00:02]} 47. Qxc5 {[%clk 0:00:22]}  Qd6 {[%clk 0:00:01]} 48. Qe3 {[%clk 0:00:16]}  e5 {[%clk 0:00:02]} 49. Rf6 {[%clk 0:00:16]}  Qd4 {[%clk 0:00:02]} 50. Qf3 {[%clk 0:00:15]}  e4 {[%clk 0:00:01]} 51. Qf4 {[%clk 0:00:13]}  Re7 {[%clk 0:00:01]} 52. Qe3 {[%clk 0:00:12]}  Qe5 {[%clk 0:00:01]} 53. Qf4 {[%clk 0:00:11]}  Qxf4 {[%clk 0:00:02]} 54. Rxf4 {[%clk 0:00:11]}  Re5 {[%clk 0:00:02]} 55. h4 {[%clk 0:00:10]}  Kf8 {[%clk 0:00:03]} 56. Kf1 {[%clk 0:00:10]}  Ke7 {[%clk 0:00:03]} 57. Ke2 {[%clk 0:00:11]}  a6 {[%clk 0:00:02]} 58. Ke3 {[%clk 0:00:11]}  Ra5 {[%clk 0:00:02]} 59. Rxe4+ {[%clk 0:00:11]}  Kd7 {[%clk 0:00:03]} 60. a4 {[%clk 0:00:11]}  Rf5 {[%clk 0:00:03]} 61. f4 {[%clk 0:00:11]}  Kd6 {[%clk 0:00:03]} 62. Kd4 {[%clk 0:00:11]}  Kc7 {[%clk 0:00:03]} 63. b4 {[%clk 0:00:10]}  Kd7 {[%clk 0:00:03]} 64. a5 {[%clk 0:00:10]}  Kc7 {[%clk 0:00:03]} 65. Re7+ {[%clk 0:00:10]}  Kd6 {[%clk 0:00:04]} 66. Re4 {[%clk 0:00:09]}  Kd7 {[%clk 0:00:04]} 67. Ke3 {[%clk 0:00:09]}  Kd6 {[%clk 0:00:03]} 68. Rd4+ {[%clk 0:00:09]}  Kc7 {[%clk 0:00:03]} 69. Ke4 {[%clk 0:00:10]}  c5 {[%clk 0:00:03]} 70. bxc5 {[%clk 0:00:09]}  Rxc5 {[%clk 0:00:04]} 71. Rd5 {[%clk 0:00:07]}  Rxc4+ {[%clk 0:00:04]} 72. Ke5 {[%clk 0:00:07]}  Ra4 {[%clk 0:00:04]} 73. Rc5+ {[%clk 0:00:06]}  Kd7 {[%clk 0:00:04]} 74. Rd5+ {[%clk 0:00:06]}  Ke7 {[%clk 0:00:04]} 75. Rc5 {[%clk 0:00:07]}  Kd7 {[%clk 0:00:02]} 76. Rd5+ {[%clk 0:00:07]}  Ke7 {[%clk 0:00:03]} 77. Rc5 {[%clk 0:00:07]}  Rb4 {[%clk 0:00:02]} 78. Rc7+ {[%clk 0:00:07]}  Kf8 {[%clk 0:00:02]} 79. Rc8+ {[%clk 0:00:05]}  Kg7 {[%clk 0:00:02]} 80. Rc5 {[%clk 0:00:06]}  Ra4 {[%clk 0:00:02]} 81. Rd5 {[%clk 0:00:06]}  Rb4 {[%clk 0:00:02]} 82. Rc5 {[%clk 0:00:06]}  Ra4 {[%clk 0:00:03]} 83. Rd5 {[%clk 0:00:06]}  Kg8 {[%clk 0:00:02]} 84. Rd8+ {[%clk 0:00:06]}  Kg7 {[%clk 0:00:03]} 85. Rd5 {[%clk 0:00:07]} 1/2-1/2


[Site "https://www.chess.com"]

[Event "Titled Tuesday Blitz August 1 Early 2023"]
[White "Sipila, Vilka"]
[Black "Cherniaiev, Tykhon"]
[WhiteFideId "505455"]
[BlackFideId "14182360"]
[WhiteElo "2642"]
[BlackElo "2758"]
[Result "0-1"]
[Round "9"]
[TimeControl "180+1"]
[Date "2023.08.01"]
[WhiteClock "0:00:00"]
[BlackClock "0:00:05"]
[Board "34"]

1. e4 {[%clk 0:03:00]}  e5 {[%clk 0:02:59]} 2. Nf3 {[%clk 0:03:00]}  Nc6 {[%clk 0:03:00]} 3. Bb5 {[%clk 0:03:01]}  Nge7 {[%clk 0:03:00]} 4. Nc3 {[%clk 0:03:01]}  a6 {[%clk 0:02:59]} 5. Ba4 {[%clk 0:02:57]}  Ng6 {[%clk 0:02:58]} 6. h4 {[%clk 0:02:56]}  h5 {[%clk 0:02:28]} 7. Nd5 {[%clk 0:02:50]}  d6 {[%clk 0:02:11]} 8. d3 {[%clk 0:02:50]}  Bg4 {[%clk 0:02:09]} 9. Bg5 {[%clk 0:02:45]}  f6 {[%clk 0:01:58]} 10. Be3 {[%clk 0:02:42]}  Qd7 {[%clk 0:01:55]} 11. Qd2 {[%clk 0:02:42]}  Be7 {[%clk 0:01:47]} 12. Bb3 {[%clk 0:02:34]}  Nf8 {[%clk 0:01:42]} 13. Nh2 {[%clk 0:02:26]}  Be6 {[%clk 0:01:39]} 14. f4 {[%clk 0:02:25]}  exf4 {[%clk 0:01:38]} 15. Bxf4 {[%clk 0:02:23]}  Nd4 {[%clk 0:01:37]} 16. O-O-O {[%clk 0:02:15]}  Nxb3+ {[%clk 0:01:36]} 17. axb3 {[%clk 0:02:15]}  Bxd5 {[%clk 0:01:34]} 18. exd5 {[%clk 0:02:16]}  Ng6 {[%clk 0:01:35]} 19. Nf3 {[%clk 0:02:13]}  Qf5 {[%clk 0:01:30]} 20. Bg3 {[%clk 0:01:43]}  Qxd5 {[%clk 0:01:30]} 21. Rhe1 {[%clk 0:01:43]}  O-O-O {[%clk 0:01:27]} 22. c4 {[%clk 0:01:37]}  Qf7 {[%clk 0:01:18]} 23. Nd4 {[%clk 0:01:36]}  f5 {[%clk 0:01:05]} 24. Ne6 {[%clk 0:01:29]}  Rde8 {[%clk 0:01:05]} 25. d4 {[%clk 0:01:28]}  Bxh4 {[%clk 0:01:02]} 26. Bxh4 {[%clk 0:01:28]}  Rxe6 {[%clk 0:01:02]} 27. Rxe6 {[%clk 0:01:28]}  Qxe6 {[%clk 0:01:02]} 28. Re1 {[%clk 0:01:28]}  Qf7 {[%clk 0:01:01]} 29. Bg5 {[%clk 0:01:28]}  Re8 {[%clk 0:01:01]} 30. Rh1 {[%clk 0:01:28]}  f4 {[%clk 0:00:47]} 31. Rxh5 {[%clk 0:01:20]}  Qf5 {[%clk 0:00:42]} 32. Qd1 {[%clk 0:01:19]}  Qa5 {[%clk 0:00:32]} 33. Kc2 {[%clk 0:01:01]}  Qf5+ {[%clk 0:00:18]} 34. Kc1 {[%clk 0:01:00]}  Kb8 {[%clk 0:00:19]} 35. Bh6 {[%clk 0:00:58]}  Qf7 {[%clk 0:00:15]} 36. Bg5 {[%clk 0:00:58]}  Qf5 {[%clk 0:00:08]} 37. Bh4 {[%clk 0:00:55]}  Qe4 {[%clk 0:00:05]} 38. Qf3 {[%clk 0:00:38]}  Qxf3 {[%clk 0:00:05]} 39. gxf3 {[%clk 0:00:37]}  Re3 {[%clk 0:00:06]} 40. Bd8 {[%clk 0:00:23]}  Rxf3 {[%clk 0:00:05]} 41. Rg5 {[%clk 0:00:23]}  Rg3 {[%clk 0:00:05]} 42. Rf5 {[%clk 0:00:23]}  f3 {[%clk 0:00:06]} 43. Rf7 {[%clk 0:00:19]}  Kc8 {[%clk 0:00:04]} 44. Bxc7 {[%clk 0:00:14]}  f2 {[%clk 0:00:04]} 45. Rxf2 {[%clk 0:00:09]}  Kxc7 {[%clk 0:00:04]} 46. Rf7+ {[%clk 0:00:10]}  Kc8 {[%clk 0:00:03]} 47. Kc2 {[%clk 0:00:10]}  Rg4 {[%clk 0:00:02]} 48. Kc3 {[%clk 0:00:10]}  Nf4 {[%clk 0:00:02]} 49. Kb4 {[%clk 0:00:09]}  Nd3+ {[%clk 0:00:02]} 50. Ka5 {[%clk 0:00:10]}  Nxb2 {[%clk 0:00:01]} 51. Kb6 {[%clk 0:00:10]}  Rxd4 {[%clk 0:00:02]} 52. Rxg7 {[%clk 0:00:09]}  Nd3 {[%clk 0:00:02]} 53. Rc7+ {[%clk 0:00:08]}  Kd8 {[%clk 0:00:02]} 54. Rxb7 {[%clk 0:00:09]}  Nc5 {[%clk 0:00:03]} 55. Ra7 {[%clk 0:00:09]}  Nxb3 {[%clk 0:00:03]} 56. Rxa6 {[%clk 0:00:09]}  Kd7 {[%clk 0:00:01]} 57. Ra7+ {[%clk 0:00:09]}  Ke6 {[%clk 0:00:02]} 58. Rc7 {[%clk 0:00:08]}  Nc5 {[%clk 0:00:02]} 59. Rc8 {[%clk 0:00:08]}  Rxc4 {[%clk 0:00:02]} 60. Kb5 {[%clk 0:00:07]}  Rc1 {[%clk 0:00:02]} 61. Rh8 {[%clk 0:00:07]}  Kd5 {[%clk 0:00:03]} 62. Rh5+ {[%clk 0:00:07]}  Kd4 {[%clk 0:00:03]} 63. Rh4+ {[%clk 0:00:08]}  Ne4 {[%clk 0:00:04]} 64. Rh2 {[%clk 0:00:06]}  d5 {[%clk 0:00:04]} 65. Kb4 {[%clk 0:00:07]}  Rb1+ {[%clk 0:00:03]} 66. Ka3 {[%clk 0:00:07]}  Kc4 {[%clk 0:00:04]} 67. Rc2+ {[%clk 0:00:06]}  Kd3 {[%clk 0:00:04]} 68. Rh2 {[%clk 0:00:05]}  d4 {[%clk 0:00:04]} 69. Rh3+ {[%clk 0:00:05]}  Kc4 {[%clk 0:00:05]} 70. Rh8 {[%clk 0:00:04]}  d3 {[%clk 0:00:03]} 71. Rc8+ {[%clk 0:00:03]}  Nc5 {[%clk 0:00:04]} 72. Rd8 {[%clk 0:00:03]}  Kc3 {[%clk 0:00:04]} 73. Ka2 {[%clk 0:00:02]}  Rb2+ {[%clk 0:00:05]} 74. Ka3 {[%clk 0:00:02]}  Rb5 {[%clk 0:00:05]} 75. Ka2 {[%clk 0:00:00]}  d2 {[%clk 0:00:05]} 0-1


[Site "https://www.chess.com"]

[Event "Titled Tuesday Blitz August 1 Early 2023"]
[White "Fantastic_Power"]
[Black "Lana Rodriguez, David"]
[BlackFideId "2270803"]
[WhiteElo "2744"]
[BlackElo "2610"]
[Result "1-0"]
[Round "9"]
[TimeControl "180+1"]
[Date "2023.08.01"]
[WhiteClock "0:00:29"]
[BlackClock "0:00:32"]
[Board "35"]

1. e4 {[%clk 0:02:48]}  e6 {[%clk 0:02:59]} 2. d4 {[%clk 0:02:48]}  b6 {[%clk 0:02:58]} 3. Nf3 {[%clk 0:02:48]}  Bb7 {[%clk 0:02:58]} 4. Bd3 {[%clk 0:02:48]}  Nf6 {[%clk 0:02:58]} 5. e5 {[%clk 0:02:48]}  Nd5 {[%clk 0:02:56]} 6. O-O {[%clk 0:02:48]}  d6 {[%clk 0:02:56]} 7. Be4 {[%clk 0:02:41]}  Qc8 {[%clk 0:02:54]} 8. c4 {[%clk 0:02:36]}  Ne7 {[%clk 0:02:49]} 9. Nc3 {[%clk 0:02:20]}  Bxe4 {[%clk 0:02:40]} 10. Nxe4 {[%clk 0:02:21]}  Ng6 {[%clk 0:02:40]} 11. Re1 {[%clk 0:02:09]}  Be7 {[%clk 0:02:40]} 12. Bg5 {[%clk 0:01:46]}  Qd7 {[%clk 0:02:29]} 13. d5 {[%clk 0:01:38]}  dxe5 {[%clk 0:02:02]} 14. h4 {[%clk 0:01:18]}  Bxg5 {[%clk 0:01:55]} 15. Nexg5 {[%clk 0:01:17]}  O-O {[%clk 0:01:35]} 16. h5 {[%clk 0:01:17]}  Nf4 {[%clk 0:01:32]} 17. Nxe5 {[%clk 0:01:08]}  Qe7 {[%clk 0:01:30]} 18. Qg4 {[%clk 0:01:05]}  Qf6 {[%clk 0:01:22]} 19. Re4 {[%clk 0:00:41]}  h6 {[%clk 0:01:16]} 20. Ngf3 {[%clk 0:00:34]}  g5 {[%clk 0:01:03]} 21. hxg6 {[%clk 0:00:31]}  Nxg6 {[%clk 0:01:03]} 22. dxe6 {[%clk 0:00:31]}  Kh7 {[%clk 0:00:53]} 23. exf7 {[%clk 0:00:28]}  Nxe5 {[%clk 0:00:51]} 24. Nxe5 {[%clk 0:00:29]}  Nc6 {[%clk 0:00:48]} 25. Nxc6 {[%clk 0:00:29]}  Qxc6 {[%clk 0:00:32]} 26. Re6 {[%clk 0:00:29]} 1-0


[Site "https://www.chess.com"]

[Event "Titled Tuesday Blitz August 1 Early 2023"]
[White "Jahnz, Fabian"]
[Black "Skvortsov, Andrei"]
[WhiteFideId "4653300"]
[BlackFideId "24108600"]
[WhiteElo "2388"]
[BlackElo "2732"]
[Result "0-1"]
[Round "9"]
[TimeControl "180+1"]
[Date "2023.08.01"]
[WhiteClock "0:00:31"]
[BlackClock "0:02:01"]
[Board "37"]

1. e4 {[%clk 0:02:59]}  d5 {[%clk 0:02:59]} 2. exd5 {[%clk 0:02:59]}  Qxd5 {[%clk 0:02:54]} 3. Nc3 {[%clk 0:02:59]}  Qe5+ {[%clk 0:02:54]} 4. Be2 {[%clk 0:02:56]}  Bg4 {[%clk 0:02:54]} 5. d4 {[%clk 0:02:39]}  Bxe2 {[%clk 0:02:54]} 6. Ngxe2 {[%clk 0:02:39]}  Qa5 {[%clk 0:02:54]} 7. O-O {[%clk 0:02:39]}  Nf6 {[%clk 0:02:52]} 8. Bd2 {[%clk 0:02:34]}  Nc6 {[%clk 0:02:51]} 9. h3 {[%clk 0:02:28]}  O-O-O {[%clk 0:02:47]} 10. a3 {[%clk 0:02:27]}  Nxd4 {[%clk 0:02:42]} 11. b4 {[%clk 0:02:14]}  Qe5 {[%clk 0:02:39]} 12. Nxd4 {[%clk 0:01:30]}  Qxd4 {[%clk 0:02:35]} 13. Be1 {[%clk 0:01:20]}  Qf4 {[%clk 0:02:26]} 14. Qe2 {[%clk 0:01:11]}  e6 {[%clk 0:02:20]} 15. g3 {[%clk 0:01:08]}  Qf5 {[%clk 0:02:19]} 16. Nb5 {[%clk 0:01:03]}  a6 {[%clk 0:02:09]} 17. a4 {[%clk 0:00:54]}  Qxh3 {[%clk 0:02:05]} 18. Nc3 {[%clk 0:00:36]}  Bxb4 {[%clk 0:02:01]} 19. Rb1 {[%clk 0:00:34]}  Ng4 {[%clk 0:02:01]} 20. f3 {[%clk 0:00:34]}  Bc5+ {[%clk 0:02:01]} 21. Bf2 {[%clk 0:00:31]}  Qxg3+ {[%clk 0:02:01]} 0-1


[Site "https://www.chess.com"]

[Event "Titled Tuesday Blitz August 1 Early 2023"]
[White "Piesik, Piotr"]
[Black "Gorovets, Andrey"]
[WhiteFideId "1136194"]
[BlackFideId "13504037"]
[WhiteElo "2608"]
[BlackElo "2752"]
[Result "0-1"]
[Round "9"]
[TimeControl "180+1"]
[Date "2023.08.01"]
[WhiteClock "0:00:04"]
[BlackClock "0:00:18"]
[Board "42"]

1. Nf3 {[%clk 0:02:59]}  c5 {[%clk 0:02:56]} 2. g3 {[%clk 0:02:59]}  g6 {[%clk 0:02:55]} 3. Bg2 {[%clk 0:03:00]}  Bg7 {[%clk 0:02:56]} 4. O-O {[%clk 0:03:00]}  Nc6 {[%clk 0:02:57]} 5. c3 {[%clk 0:02:59]}  e5 {[%clk 0:02:42]} 6. e4 {[%clk 0:02:55]}  Nge7 {[%clk 0:02:42]} 7. Na3 {[%clk 0:02:53]}  O-O {[%clk 0:02:40]} 8. d4 {[%clk 0:02:53]}  exd4 {[%clk 0:02:40]} 9. cxd4 {[%clk 0:02:52]}  Nxd4 {[%clk 0:02:40]} 10. Nxd4 {[%clk 0:02:49]}  cxd4 {[%clk 0:02:40]} 11. Bf4 {[%clk 0:02:48]}  d5 {[%clk 0:02:40]} 12. e5 {[%clk 0:02:46]}  Nc6 {[%clk 0:02:38]} 13. Re1 {[%clk 0:02:47]}  Re8 {[%clk 0:02:38]} 14. Nb5 {[%clk 0:02:43]}  g5 {[%clk 0:02:32]} 15. Bd2 {[%clk 0:02:41]}  Rxe5 {[%clk 0:02:28]} 16. Rxe5 {[%clk 0:02:39]}  Nxe5 {[%clk 0:02:29]} 17. Nxd4 {[%clk 0:02:35]}  Bg4 {[%clk 0:02:18]} 18. Qb3 {[%clk 0:02:29]}  Nc6 {[%clk 0:02:12]} 19. Nf3 {[%clk 0:02:17]}  h6 {[%clk 0:02:06]} 20. Qxb7 {[%clk 0:02:14]}  Bd7 {[%clk 0:02:06]} 21. Qb3 {[%clk 0:02:06]}  g4 {[%clk 0:01:50]} 22. Nh4 {[%clk 0:02:04]}  Be6 {[%clk 0:01:46]} 23. Qa4 {[%clk 0:01:55]}  Qb6 {[%clk 0:01:38]} 24. Bc3 {[%clk 0:01:50]}  Nd4 {[%clk 0:01:32]} 25. Re1 {[%clk 0:01:38]}  Rd8 {[%clk 0:01:25]} 26. Qa5 {[%clk 0:00:59]}  Nc2 {[%clk 0:01:10]} 27. Qxb6 {[%clk 0:00:50]}  axb6 {[%clk 0:01:11]} 28. Rc1 {[%clk 0:00:44]}  d4 {[%clk 0:01:11]} 29. Bd2 {[%clk 0:00:40]}  d3 {[%clk 0:01:07]} 30. b3 {[%clk 0:00:40]}  Rd7 {[%clk 0:00:56]} 31. Be4 {[%clk 0:00:36]}  Bb2 {[%clk 0:00:41]} 32. Rb1 {[%clk 0:00:31]}  Bg7 {[%clk 0:00:37]} 33. Nf5 {[%clk 0:00:29]}  Nd4 {[%clk 0:00:37]} 34. Nxg7 {[%clk 0:00:26]}  Kxg7 {[%clk 0:00:35]} 35. Rd1 {[%clk 0:00:20]}  f5 {[%clk 0:00:31]} 36. Bg2 {[%clk 0:00:15]}  Kf7 {[%clk 0:00:20]} 37. Bxh6 {[%clk 0:00:12]}  Bd5 {[%clk 0:00:17]} 38. Rxd3 {[%clk 0:00:07]}  Ne2+ {[%clk 0:00:15]} 39. Kf1 {[%clk 0:00:08]}  Bxg2+ {[%clk 0:00:15]} 40. Kxe2 {[%clk 0:00:06]}  Bf1+ {[%clk 0:00:16]} 41. Kxf1 {[%clk 0:00:05]}  Rxd3 {[%clk 0:00:17]} 42. Be3 {[%clk 0:00:04]}  b5 {[%clk 0:00:17]} 43. Ke2 {[%clk 0:00:03]}  Rd8 {[%clk 0:00:16]} 44. a4 {[%clk 0:00:04]}  bxa4 {[%clk 0:00:16]} 45. bxa4 {[%clk 0:00:05]}  Ra8 {[%clk 0:00:17]} 46. f3 {[%clk 0:00:05]}  Rxa4 {[%clk 0:00:16]} 47. fxg4 {[%clk 0:00:05]}  fxg4 {[%clk 0:00:17]} 48. Kf2 {[%clk 0:00:05]}  Ke6 {[%clk 0:00:17]} 49. Kg2 {[%clk 0:00:05]}  Ra2+ {[%clk 0:00:16]} 50. Bf2 {[%clk 0:00:06]}  Kd5 {[%clk 0:00:16]} 51. Kg1 {[%clk 0:00:06]}  Ke4 {[%clk 0:00:17]} 52. Kg2 {[%clk 0:00:06]}  Rc2 {[%clk 0:00:17]} 53. Kg1 {[%clk 0:00:04]}  Kf3 {[%clk 0:00:18]} 0-1


[Site "https://www.chess.com"]

[Event "Titled Tuesday Blitz August 1 Early 2023"]
[White "Kobo, Ori"]
[Black "brm72"]
[WhiteFideId "2812320"]
[WhiteElo "2750"]
[BlackElo "2604"]
[Result "1-0"]
[Round "9"]
[TimeControl "180+1"]
[Date "2023.08.01"]
[WhiteClock "0:00:24"]
[BlackClock "0:00:11"]
[Board "43"]

1. c4 {[%clk 0:03:00]}  c5 {[%clk 0:02:59]} 2. Nf3 {[%clk 0:03:00]}  Nc6 {[%clk 0:02:59]} 3. Nc3 {[%clk 0:03:00]}  g6 {[%clk 0:02:59]} 4. e3 {[%clk 0:02:57]}  Nf6 {[%clk 0:02:58]} 5. d4 {[%clk 0:02:57]}  cxd4 {[%clk 0:02:59]} 6. exd4 {[%clk 0:02:58]}  d5 {[%clk 0:02:59]} 7. cxd5 {[%clk 0:02:58]}  Nxd5 {[%clk 0:03:00]} 8. Bc4 {[%clk 0:02:58]}  Nxc3 {[%clk 0:03:00]} 9. Qb3 {[%clk 0:02:58]}  Nd5 {[%clk 0:03:01]} 10. Bxd5 {[%clk 0:02:58]}  e6 {[%clk 0:03:01]} 11. Bxc6+ {[%clk 0:02:58]}  bxc6 {[%clk 0:03:02]} 12. O-O {[%clk 0:02:58]}  Qd5 {[%clk 0:03:01]} 13. Qc3 {[%clk 0:02:54]}  f6 {[%clk 0:02:54]} 14. Be3 {[%clk 0:02:50]}  Kf7 {[%clk 0:02:39]} 15. Rac1 {[%clk 0:02:49]}  Bd7 {[%clk 0:02:31]} 16. b3 {[%clk 0:02:38]}  Ba3 {[%clk 0:02:24]} 17. Rc2 {[%clk 0:02:36]}  Rab8 {[%clk 0:02:24]} 18. Nd2 {[%clk 0:02:25]}  Bb4 {[%clk 0:02:15]} 19. Qb2 {[%clk 0:02:18]}  h5 {[%clk 0:01:58]} 20. Nc4 {[%clk 0:02:06]}  Rhg8 {[%clk 0:01:39]} 21. a3 {[%clk 0:01:55]}  Be7 {[%clk 0:01:38]} 22. b4 {[%clk 0:01:52]}  g5 {[%clk 0:01:33]} 23. Na5 {[%clk 0:01:37]}  g4 {[%clk 0:01:14]} 24. Qb1 {[%clk 0:01:30]}  Rg6 {[%clk 0:01:08]} 25. Rfc1 {[%clk 0:01:19]}  Rb6 {[%clk 0:00:55]} 26. Rc5 {[%clk 0:01:13]}  Bxc5 {[%clk 0:00:38]} 27. Rxc5 {[%clk 0:01:14]}  Qd6 {[%clk 0:00:38]} 28. Nc4 {[%clk 0:01:10]}  Qf8 {[%clk 0:00:31]} 29. Nxb6 {[%clk 0:00:56]}  axb6 {[%clk 0:00:32]} 30. Rxh5 {[%clk 0:00:56]}  Qg7 {[%clk 0:00:22]} 31. Qe4 {[%clk 0:00:44]}  e5 {[%clk 0:00:17]} 32. dxe5 {[%clk 0:00:40]}  fxe5 {[%clk 0:00:14]} 33. Rxe5 {[%clk 0:00:39]}  Qf6 {[%clk 0:00:14]} 34. Qc4+ {[%clk 0:00:26]}  Kg7 {[%clk 0:00:12]} 35. Bd4 {[%clk 0:00:25]}  Kh7 {[%clk 0:00:11]} 36. Rh5+ {[%clk 0:00:24]} 1-0


[Site "https://www.chess.com"]